fUSD/lending_fUSD_20260408
["ID","MTS","AMOUNT","RATE_DAILY","PERIOD"]
[420044580,1775631058134,-178.131653,0.000274,7]
[420044581,1775631058145,-473.535627,0.000274,7]
[420044582,1775631058156,-1038.408242,0.000274,7]
[420044583,1775631058166,-473.535627,0.000274,7]
[420044584,1775631058176,-178.131653,0.000274,7]
[420044585,1775631058187,-473.535627,0.000274,7]
[420044586,1775631058197,-473.535627,0.000274,7]
[420044587,1775631058206,-151.0,0.000274,7]
[420044588,1775631058217,-1598.085732,0.000274,7]
[420044589,1775631058227,-1598.085732,0.000274,7]
[420044590,1775631058237,-1598.085732,0.000274,7]
[420044591,1775631058248,-1598.085732,0.000274,7]
[420044592,1775631058259,-151.0,0.000274,7]
[420044593,1775631058269,-151.0,0.000274,7]
[420044594,1775631058279,-151.0,0.000274,7]
[420044595,1775631058289,-151.0,0.000274,7]
[420044596,1775631058299,-151.0,0.000274,7]
[420044597,1775631058309,-151.0,0.000274,7]
[420044598,1775631058319,-349.42474539,0.00027452,2]
[420044599,1775631058328,-657.0,0.00027497,5]
[420044600,1775631058339,-891.0,0.00027497,5]
[420044601,1775631058350,-300.0,0.000275,10]
[420044602,1775631058359,-500.0,0.00027528,3]
[420044603,1775631058369,-500.0,0.0002757,14]
[420044604,1775631058380,-612.0,0.000276,2]
[420044605,1775631058390,-1000.0,0.000276,2]
[420044606,1775631058400,-627.0,0.000276,2]
[420044607,1775631058410,-878.0,0.000276,2]
[420044608,1775631058420,-305.63,0.00027671,120]
[420044609,1775631058430,-1155.81312684,0.00027671,7]
[420044610,1775631058440,-2000.0,0.0002772,2]
[420044611,1775631058450,-2000.0,0.0002772,2]
[420044612,1775631058461,-2000.0,0.0002772,2]
[420044613,1775631058471,-350.0,0.00027849,2]
[420044614,1775631058481,-162.4734,0.0002786,2]
[420044615,1775631058491,-162.4734,0.0002787,2]
[420044616,1775631058502,-162.4734,0.0002788,2]
[420044617,1775631058512,-715.44099296,0.00027897,2]
[420044618,1775631058523,-61307.98,0.000279,7]
[420044619,1775631058533,-151.0,0.000279,7]
[420044620,1775631058543,-151.0,0.000279,7]
[420044621,1775631058553,-151.0,0.000279,7]
[420044622,1775631058563,-151.0,0.000279,7]
[420044623,1775631058574,-319.538479,0.000279,7]
[420044624,1775631058584,-151.0,0.000279,7]
[420044625,1775631058595,-319.538479,0.000279,7]
[420044626,1775631058605,-151.0,0.000279,7]
[420044627,1775631058616,-151.0,0.000279,7]
[420044628,1775631058626,-319.538479,0.000279,7]
[420044629,1775631058636,-151.0,0.000279,7]
[420044630,1775631058647,-319.538479,0.000279,7]
[420044631,1775631058657,-459.201936,0.000279,7]
[420044632,1775631058668,-162.886949,0.000279,7]
[420044633,1775631058678,-459.201936,0.000279,7]
[420044634,1775631058689,-745.036338,0.000279,7]
[420044635,1775631058700,-459.201936,0.000279,7]
[420044636,1775631058711,-151.0,0.000279,7]
[420044637,1775631058724,-745.036338,0.000279,7]
[420044638,1775631058734,-459.201936,0.000279,7]
[420044639,1775631058745,-240.149938,0.000279,7]
[420044640,1775631058755,-151.0,0.000279,7]
[420044641,1775631058766,-151.0,0.000279,7]
[420044642,1775631058776,-745.036338,0.000279,7]
[420044643,1775631058787,-240.149938,0.000279,7]
[420044644,1775631058798,-151.0,0.000279,7]
[420044645,1775631058809,-745.036338,0.000279,7]
[420044646,1775631058819,-240.149938,0.000279,7]
[420044647,1775631058830,-151.0,0.000279,7]
[420044648,1775631058841,-240.149938,0.000279,7]
[420044649,1775631058851,-151.0,0.000279,7]
[420044650,1775631059018,-151.0,0.000279,7]
[420044651,1775631059029,-1149.015996,0.000279,7]
[420044652,1775631059039,-151.0,0.000279,7]
[420044653,1775631059051,-1149.015996,0.000279,7]
[420044654,1775631059062,-151.0,0.000279,7]
[420044655,1775631059073,-1149.015996,0.000279,7]
[420044656,1775631059084,-151.0,0.000279,7]
[420044657,1775631059095,-151.0,0.000279,7]
[420044658,1775631059105,-1149.015996,0.000279,7]
[420044659,1775631059115,-185.890323,0.000279,7]
[420044660,1775631059125,-151.0,0.000279,7]
[420044661,1775631059136,-151.0,0.000279,7]
[420044662,1775631059146,-220.307081,0.000279,7]
[420044663,1775631059157,-220.307081,0.000279,7]
[420044664,1775631059167,-220.307081,0.000279,7]
[420044665,1775631059177,-220.307081,0.000279,7]
[420044666,1775631059187,-305.65,0.00027945,120]
[420044667,1775631059199,-250.0,0.00027945,5]
[420044668,1775631059209,-152.0,0.00027973,7]
[420044669,1775631059219,-153.8213918,0.00027973,5]
[420044670,1775631059230,-300.0,0.00027974,2]
[420044671,1775631059240,-10288.1343921,0.00027988,2]
[420044672,1775631059250,-111451.8410157,0.00027988,2]
[420044673,1775631059260,-153541.8880077,0.00027988,2]
[420044674,1775631059270,-288.07095047,0.00027997,7]
[420044675,1775631059279,-151.0,0.00027997,7]
[420044676,1775631059289,-351.54269781,0.00027998,7]
[420044677,1775631059300,-500.0,0.00027999,120]
[420044678,1775631059310,-1865749.35385094,0.00028,2]
[420044679,1775631059321,-2000.0,0.00028,30]
[420044680,1775631059330,-1000000.0,0.00028,120]
[420044681,1775631059340,-550.0,0.00028,3]
[420044682,1775631059350,-500.0,0.00028,15]
[420044683,1775631059360,-500.0,0.00028,15]
[420044684,1775631059369,-500.0,0.00028,15]
[420044685,1775631059379,-500.0,0.00028,61]
[420044686,1775631059389,-1661.81,0.00028,2]
[420044687,1775631059401,-200.0,0.00028,2]
[420044688,1775631059411,-343.24554819,0.00028,2]
[420044689,1775631059422,-151.0,0.00028,2]
[420044690,1775631059431,-160.0,0.00028,10]
[420044691,1775631059442,-160.0,0.00028,7]
[420044692,1775631059453,-151.0,0.00028,7]
[420044693,1775631059463,-151.0,0.00028,7]
[420044694,1775631059473,-151.0,0.00028,7]
[420044695,1775631059484,-160.0,0.00028,7]
[420044696,1775631059493,-160.0,0.00028,7]
[420044697,1775631059503,-200.0,0.00028,2]
[420044698,1775631059513,-151.0,0.00028,7]
[420044699,1775631059522,-151.0,0.00028,7]
[420044700,1775631059532,-152.259776,0.00028,7]
[420044701,1775631059542,-151.0,0.00028,7]
[420044702,1775631059551,-151.0,0.00028,7]
[420044703,1775631059561,-151.0,0.00028,7]
[420044704,1775631059573,-151.0,0.00028,7]
[420044705,1775631059583,-151.0,0.00028,7]
[420044706,1775631059593,-151.0,0.00028,7]
[420044707,1775631059603,-151.0,0.00028,7]
[420044708,1775631059614,-151.0,0.00028,7]
[420044709,1775631059624,-165.840251,0.00028,7]
[420044710,1775631059633,-151.0,0.00028,7]
[420044711,1775631059643,-151.0,0.00028,7]
[420044712,1775631059653,-153.642442,0.00028,7]
[420044713,1775631059662,-151.0,0.00028,7]
[420044714,1775631059673,-157.356838,0.00028,7]
[420044715,1775631059683,-151.0,0.00028,7]
[420044716,1775631059692,-151.0,0.00028,7]
[420044717,1775631059703,-218.181893,0.00028,7]
[420044718,1775631059713,-151.0,0.00028,7]
[420044719,1775631059723,-151.0,0.00028,7]
[420044720,1775631059733,-151.0,0.00028,2]
[420044721,1775631059743,-151.0,0.00028,7]
[420044722,1775631059752,-151.575895,0.00028,7]
[420044723,1775631059762,-151.0,0.00028,7]
[420044724,1775631059772,-151.0,0.00028,7]
[420044725,1775631059782,-151.0,0.00028,7]
[420044726,1775631059791,-151.0,0.00028,7]
[420044727,1775631059801,-151.0,0.00028,7]
[420044728,1775631059812,-209.655793,0.00028,7]
[420044729,1775631059821,-151.0,0.00028,7]
[420044730,1775631059831,-151.0,0.00028,7]
[420044731,1775631059841,-151.0,0.00028,7]
[420044732,1775631059851,-151.0,0.00028,7]
[420044733,1775631059862,-151.0,0.00028,7]
[420044734,1775631059872,-160.07205,0.00028,7]
[420044735,1775631059882,-151.0,0.00028,7]
[420044736,1775631059893,-151.0,0.00028,7]
[420044737,1775631059904,-151.0,0.00028,7]
[420044738,1775631059914,-151.0,0.00028,7]
[420044739,1775631059923,-151.0,0.00028,7]
[420044740,1775631059933,-151.0,0.00028,7]
[420044741,1775631059943,-151.0,0.00028,7]
[420044742,1775631059953,-151.0,0.00028,7]
[420044743,1775631059962,-151.0,0.00028,7]
[420044744,1775631059972,-151.0,0.00028,7]
[420044745,1775631059982,-151.0,0.00028,7]
[420044746,1775631059992,-151.0,0.00028,7]
[420044747,1775631060003,-151.0,0.00028,7]
[420044748,1775631060013,-153.51936,0.00028,7]
[420044749,1775631060023,-207.253336,0.00028,7]
[420044750,1775631060033,-151.0,0.00028,7]
[420044751,1775631060043,-194.376713,0.00028,7]
[420044752,1775631060052,-367.951573,0.00028,7]
[420044753,1775631060063,-367.951573,0.00028,7]
[420044754,1775631060073,-367.951573,0.00028,7]
[420044755,1775631060082,-367.951573,0.00028,7]
[420044756,1775631060092,-151.0,0.00028,7]
[420044757,1775631060102,-151.0,0.00028,7]
[420044758,1775631060112,-181.009333,0.00028,7]
[420044759,1775631060122,-1774.72141,0.00028,7]
[420044760,1775631060132,-181.009333,0.00028,7]
[420044761,1775631060142,-151.0,0.00028,7]
[420044762,1775631060152,-1774.72141,0.00028,7]
[420044763,1775631060161,-181.009333,0.00028,7]
[420044764,1775631060170,-151.0,0.00028,7]
[420044765,1775631060180,-1774.72141,0.00028,7]
[420044766,1775631060190,-181.009333,0.00028,7]
[420044767,1775631060200,-151.0,0.00028,7]
[420044768,1775631060210,-1774.72141,0.00028,7]
[420044769,1775631060220,-158.096412,0.00028,7]
[420044770,1775631060231,-151.0,0.00028,7]
[420044771,1775631060241,-151.0,0.00028,7]
[420044772,1775631060251,-151.0,0.00028,7]
[420044773,1775631060260,-151.0,0.00028,7]
[420044774,1775631060271,-319.538479,0.00028,7]
[420044775,1775631060281,-151.0,0.00028,7]
[420044776,1775631060291,-319.538479,0.00028,7]
[420044777,1775631060301,-151.0,0.00028,7]
[420044778,1775631060311,-151.0,0.00028,7]
[420044779,1775631060321,-319.538479,0.00028,7]
[420044780,1775631060330,-151.0,0.00028,7]
[420044781,1775631060340,-319.538479,0.00028,7]
[420044782,1775631060350,-459.201936,0.00028,7]
[420044783,1775631060360,-459.201936,0.00028,7]
[420044784,1775631060371,-745.036338,0.00028,7]
[420044785,1775631060381,-459.201936,0.00028,7]
[420044786,1775631060391,-255.865248,0.00028,7]
[420044787,1775631060401,-745.036338,0.00028,7]
[420044788,1775631060412,-240.149938,0.00028,7]
[420044789,1775631060422,-459.201936,0.00028,7]
[420044790,1775631060432,-153.516004,0.00028,7]
[420044791,1775631060443,-151.0,0.00028,7]
[420044792,1775631060452,-745.036338,0.00028,7]
[420044793,1775631060462,-240.149938,0.00028,7]
[420044794,1775631060471,-151.0,0.00028,7]
[420044795,1775631060481,-745.036338,0.00028,7]
[420044796,1775631060491,-240.149938,0.00028,7]
[420044797,1775631060500,-151.0,0.00028,7]
[420044798,1775631060510,-240.149938,0.00028,7]
[420044799,1775631060519,-153.67571,0.00028,7]
[420044800,1775631060529,-151.0,0.00028,7]
[420044801,1775631060540,-1149.015996,0.00028,7]
[420044802,1775631060550,-151.0,0.00028,7]
[420044803,1775631060560,-1149.015996,0.00028,7]
[420044804,1775631060570,-151.0,0.00028,7]
[420044805,1775631060580,-1149.015996,0.00028,7]
[420044806,1775631060590,-151.0,0.00028,7]
[420044807,1775631060601,-151.0,0.00028,7]
[420044808,1775631060613,-1149.015996,0.00028,7]
[420044809,1775631060624,-151.0,0.00028,7]
[420044810,1775631060634,-2000.0,0.00028,2]
[420044811,1775631060645,-2000.0,0.00028,2]
[420044812,1775631060655,-2000.0,0.00028,2]
[420044813,1775631060666,-151.0,0.00028,7]
[420044814,1775631060676,-289.611523,0.00028,7]
[420044815,1775631060686,-220.307081,0.00028,7]
[420044816,1775631060697,-400.243039,0.00028,7]
[420044817,1775631060706,-220.307081,0.00028,7]
[420044818,1775631060716,-400.243039,0.00028,7]
[420044819,1775631060726,-533.24076,0.00028,7]
[420044820,1775631060737,-151.0,0.00028,7]
[420044821,1775631060747,-220.307081,0.00028,7]
[420044822,1775631060757,-400.243039,0.00028,7]
[420044823,1775631060769,-533.24076,0.00028,7]
[420044824,1775631060779,-151.0,0.00028,7]
[420044825,1775631060789,-151.0,0.00028,7]
[420044826,1775631060799,-220.307081,0.00028,7]
[420044827,1775631060809,-400.243039,0.00028,7]
[420044828,1775631060819,-533.24076,0.00028,7]
[420044829,1775631060829,-389.503327,0.00028,7]
[420044830,1775631060839,-533.24076,0.00028,7]
[420044831,1775631060849,-1038.408242,0.00028,7]
[420044832,1775631060859,-389.503327,0.00028,7]
[420044833,1775631060868,-178.131653,0.00028,7]
[420044834,1775631060878,-1038.408242,0.00028,7]
[420044835,1775631060887,-389.503327,0.00028,7]
[420044836,1775631060899,-151.0,0.00028,7]
[420044837,1775631060909,-178.131653,0.00028,7]
[420044838,1775631060919,-1038.408242,0.00028,7]
[420044839,1775631060929,-389.503327,0.00028,7]
[420044840,1775631060939,-178.131653,0.00028,7]
[420044841,1775631060949,-473.535627,0.00028,7]
[420044842,1775631060959,-1038.408242,0.00028,7]
[420044843,1775631060968,-178.131653,0.00028,7]
[420044844,1775631060978,-473.535627,0.00028,7]
[420044845,1775631060987,-473.535627,0.00028,7]
[420044846,1775631060997,-473.535627,0.00028,7]
[420044847,1775631061007,-151.0,0.00028,7]
[420044848,1775631061018,-1598.085732,0.00028,7]
[420044849,1775631061027,-1598.085732,0.00028,7]
[420044850,1775631061036,-1598.085732,0.00028,7]
[420044851,1775631061046,-1598.085732,0.00028,7]
[420044852,1775631061056,-151.0,0.00028,7]
[420044853,1775631061064,-152.532495,0.00028,7]
[420044854,1775631061074,-151.0,0.00028,7]
[420044855,1775631061083,-151.0,0.00028,7]
[420044856,1775631061093,-151.0,0.00028,7]
[420044857,1775631061102,-151.0,0.00028,7]
[420044858,1775631061113,-151.0,0.00028,7]
[420044859,1775631061122,-151.0,0.00028,7]
[420044860,1775631061132,-151.0,0.00028,7]
[420044861,1775631061142,-151.0,0.00028,7]
[420044862,1775631061152,-151.0,0.00028,7]
[420044863,1775631061162,-151.0,0.00028,7]
[420044864,1775631061171,-151.0,0.00028,7]
[420044865,1775631061181,-271.671072,0.00028,7]
[420044866,1775631061191,-188.20304,0.00028,7]
[420044867,1775631061508,-188.20304,0.00028,7]
[420044868,1775631061570,-265.523068,0.00028,7]
[420044869,1775631061581,-188.20304,0.00028,7]
[420044870,1775631061591,-265.523068,0.00028,7]
[420044871,1775631061601,-160.342969,0.00028,7]
[420044872,1775631061612,-173.121196,0.00028,7]
[420044873,1775631061622,-151.0,0.00028,7]
[420044874,1775631061633,-265.523068,0.00028,7]
[420044875,1775631061643,-188.20304,0.00028,7]
[420044876,1775631061654,-173.121196,0.00028,7]
[420044877,1775631061664,-160.342969,0.00028,7]
[420044878,1775631061674,-265.523068,0.00028,7]
[420044879,1775631061683,-173.121196,0.00028,7]
[420044880,1775631061694,-160.342969,0.00028,7]
[420044881,1775631061705,-239.394437,0.00028,7]
[420044882,1775631061715,-160.342969,0.00028,7]
[420044883,1775631061725,-173.121196,0.00028,7]
[420044884,1775631061735,-239.394437,0.00028,7]
[420044885,1775631061745,-192.797492,0.00028,7]
[420044886,1775631061754,-239.394437,0.00028,7]
[420044887,1775631061764,-151.0,0.00028,7]
[420044888,1775631061775,-325.579836,0.00028,7]
[420044889,1775631061785,-192.797492,0.00028,7]
[420044890,1775631061795,-239.394437,0.00028,7]
[420044891,1775631061805,-325.579836,0.00028,7]
[420044892,1775631061815,-192.797492,0.00028,7]
[420044893,1775631061826,-151.0,0.00028,7]
[420044894,1775631061836,-325.579836,0.00028,7]
[420044895,1775631061846,-192.797492,0.00028,7]
[420044896,1775631061856,-151.0,0.00028,7]
[420044897,1775631061866,-325.579836,0.00028,7]
[420044898,1775631061876,-151.0,0.00028,7]
[420044899,1775631061887,-151.0,0.00028,7]
[420044900,1775631061898,-1426.6025,0.00028,7]
[420044901,1775631061907,-1426.6025,0.00028,7]
[420044902,1775631061917,-1426.6025,0.00028,7]
[420044903,1775631061927,-1426.6025,0.00028,7]
[420044904,1775631061937,-151.0,0.00028,7]
[420044905,1775631061947,-151.0,0.00028,7]
[420044906,1775631061957,-158.603136,0.00028,7]
[420044907,1775631061966,-160.0,0.00028,10]
[420044908,1775631061976,-1906.81,0.000281,7]
[420044909,1775631061986,-3831.55,0.000281,7]
[420044910,1775631061996,-151.0,0.000281,5]
[420044911,1775631062006,-156.6405,0.00028157,2]
[420044912,1775631062016,-156.6405,0.00028198,2]
[420044913,1775631062025,-1787.82,0.000282,7]
[420044914,1775631062036,-1163.31,0.0002821,7]
[420044915,1775631062046,-954.86,0.0002821,7]
[420044916,1775631062057,-900.0,0.00028274,21]
[420044917,1775631062067,-1800.0,0.00028274,21]
[420044918,1775631062077,-200.0,0.0002828,2]
[420044919,1775631062087,-200.0,0.0002828,2]
[420044920,1775631062097,-610.24244207,0.00028283,2]
[420044921,1775631062107,-200.16907294,0.00028297,120]
[420044922,1775631062117,-677.3617,0.000283,2]
[420044923,1775631062126,-61307.98,0.000283,7]
[420044924,1775631062136,-500.0,0.00028397,16]
[420044925,1775631062146,-1000.0,0.000284,120]
[420044926,1775631062156,-151.0,0.000284,2]
[420044927,1775631062167,-1227.65,0.000284,7]
[420044928,1775631062177,-165.0,0.0002842,120]
[420044929,1775631062187,-350.0,0.00028493,5]
[420044930,1775631062196,-1000.0,0.00028493,5]
[420044931,1775631062206,-957.58,0.000285,30]
[420044932,1775631062215,-150.0,0.00028544,2]
[420044933,1775631062226,-350.0,0.00028549,5]
[420044934,1775631062235,-200.0,0.00028563,2]
[420044935,1775631062245,-200.0,0.00028563,2]
[420044936,1775631062255,-193.34881877,0.0002858,120]
[420044937,1775631062264,-3831.55,0.000286,7]
[420044938,1775631062274,-1323.92332842,0.00028646,15]
[420044939,1775631062283,-1906.81,0.000287,7]
[420044940,1775631062294,-61307.98,0.000287,7]
[420044941,1775631062303,-1116.92,0.00028766,7]
[420044942,1775631062313,-498.91982818,0.00028767,2]
[420044943,1775631062322,-150.0,0.00028767,2]
[420044944,1775631062332,-178.0,0.00028767,2]
[420044945,1775631062342,-150.0,0.00028767,2]
[420044946,1775631062353,-177.0,0.00028767,2]
[420044947,1775631062363,-150.0,0.00028767,2]
[420044948,1775631062372,-177.0,0.00028767,2]
[420044949,1775631062383,-500.0,0.00028767,30]
[420044950,1775631062392,-165.0,0.00028778,120]
[420044951,1775631062403,-1787.82,0.000288,7]
[420044952,1775631062413,-160.0,0.000288,7]
[420044953,1775631062422,-160.0,0.000288,7]
[420044954,1775631062432,-160.0,0.000288,7]
[420044955,1775631062442,-201.0,0.0002882,30]
[420044956,1775631062452,-2202.78,0.00028839,2]
[420044957,1775631062462,-200.0,0.00028848,2]
[420044958,1775631062473,-200.0,0.00028848,2]
[420044959,1775631062483,-200.0,0.0002893,2]
[420044960,1775631062493,-2469.59357364,0.00029,120]
[420044961,1775631062503,-506.81192485,0.00029,2]
[420044962,1775631062512,-1000.0,0.00029,120]
[420044963,1775631062522,-150.0,0.00029,60]
[420044964,1775631062532,-150.0,0.00029,60]
[420044965,1775631062542,-252.1,0.00029,60]
[420044966,1775631062552,-4664.0,0.00029,5]
[420044967,1775631062561,-5000.0,0.00029,2]
[420044968,1775631062570,-500.0,0.00029,62]
[420044969,1775631062579,-650.0,0.00029,2]
[420044970,1775631062590,-160.0,0.00029,30]
[420044971,1775631062600,-450.0,0.00029041,5]
[420044972,1775631062610,-1444.0,0.00029041,120]
[420044973,1775631062621,-2323.86,0.0002906,7]
[420044974,1775631062631,-900.0,0.00029096,21]
[420044975,1775631062641,-1800.0,0.00029096,21]
[420044976,1775631062651,-3831.55,0.000291,7]
[420044977,1775631062662,-61307.98,0.000291,7]
[420044978,1775631062673,-151.0,0.000291,5]
[420044979,1775631062683,-200.0,0.00029137,2]
[420044980,1775631062693,-200.0,0.00029137,2]
[420044981,1775631062703,-3524.0,0.00029138,2]
[420044982,1775631062713,-1046.0,0.00029138,2]
[420044983,1775631062723,-622.0,0.00029138,2]
[420044984,1775631062732,-1264.0,0.00029138,2]
[420044985,1775631062742,-1217.0,0.00029138,2]
[420044986,1775631062752,-926.0,0.00029138,2]
[420044987,1775631062762,-2471.0,0.00029138,2]
[420044988,1775631062772,-164.73774504,0.00029181,120]
[420044989,1775631062782,-1227.65,0.000292,7]
[420044990,1775631062792,-350.0,0.00029209,3]
[420044991,1775631062802,-165.0,0.00029211,120]
[420044992,1775631062812,-500.0,0.00029249,18]
[420044993,1775631062822,-368.0,0.00029272,120]
[420044994,1775631062832,-221.0,0.00029272,120]
[420044995,1775631062842,-166.0,0.00029272,120]
[420044996,1775631062851,-166.0,0.00029272,120]
[420044997,1775631062861,-1906.81,0.000293,7]
[420044998,1775631062871,-2000.0,0.000293,2]
[420044999,1775631062881,-700.0,0.00029396,6]
[420045000,1775631062891,-800.0,0.000294,120]
[420045001,1775631062901,-1787.82,0.000294,7]
[420045002,1775631062912,-500.0,0.00029413,120]
[420045003,1775631062922,-12748.82772386,0.000295,120]
[420045004,1775631062933,-2463.08791,0.000295,2]
[420045005,1775631062942,-647.53453484,0.00029589,5]
[420045006,1775631062952,-1500.0,0.00029589,5]
[420045007,1775631062962,-760.6492,0.000296,2]
[420045008,1775631062972,-3831.55,0.000296,7]
[420045009,1775631062982,-825.0,0.00029652,60]
[420045010,1775631062992,-150.0,0.00029834,2]
[420045011,1775631063002,-165.0,0.00029841,120]
[420045012,1775631063011,-238.0,0.00029872,2]
[420045013,1775631063021,-79651.98427746,0.000299,2]
[420045014,1775631063030,-900.0,0.00029918,21]
[420045015,1775631063040,-1800.0,0.00029918,21]
[420045016,1775631063050,-150.0,0.00029971,2]
[420045017,1775631063059,-239.52342972,0.0002999,2]
[420045018,1775631063069,-151.0,0.00029997,7]
[420045019,1775631063079,-4577.70051796,0.00029999,120]
[420045020,1775631063089,-200.0,0.0003,11]
[420045021,1775631063099,-200.0,0.0003,11]
[420045022,1775631063108,-363.90930972,0.0003,30]
[420045023,1775631063118,-18629.40935312,0.0003,2]
[420045024,1775631063128,-289.61128699,0.0003,120]
[420045025,1775631063138,-20062.36751892,0.0003,2]
[420045026,1775631063147,-2000.0,0.0003,14]
[420045027,1775631063157,-322.40162377,0.0003,2]
[420045028,1775631063166,-1835.58866705,0.0003,2]
[420045029,1775631063176,-889.68762636,0.0003,120]
[420045030,1775631063186,-582.29722713,0.0003,4]
[420045031,1775631063195,-461.5046379,0.0003,120]
[420045032,1775631063205,-1340.60513641,0.0003,30]
[420045033,1775631063214,-400.0,0.0003,20]
[420045034,1775631063223,-304.30018302,0.0003,120]
[420045035,1775631063233,-521.12062598,0.0003,30]
[420045036,1775631063243,-164.6178034,0.0003,2]
[420045037,1775631063252,-1018.69939106,0.0003,120]
[420045038,1775631063262,-150.0,0.0003,2]
[420045039,1775631063271,-507.97215446,0.0003,7]
[420045040,1775631063281,-8996.63233844,0.0003,30]
[420045041,1775631063290,-152.6262091,0.0003,120]
[420045042,1775631063300,-2000.0,0.0003,120]
[420045043,1775631063309,-2000.0,0.0003,30]
[420045044,1775631063319,-404.017,0.0003,15]
[420045045,1775631063328,-4461.271292,0.0003,60]
[420045046,1775631063338,-200.0,0.0003,11]
[420045047,1775631063348,-200.0,0.0003,11]
[420045048,1775631063359,-151.0,0.0003,2]
[420045049,1775631063369,-151.0,0.0003,2]
[420045050,1775631063379,-600.0,0.0003,10]
[420045051,1775631063389,-52975.65034282,0.0003,2]
[420045052,1775631064331,-496.89802478,0.0003,2]
[420045053,1775631064904,-1019.64210675,0.00020138,2]
[420045054,1775631065767,-5002.35789325,0.00020138,2]
[420045055,1775631065780,-1000.0,0.00026333,120]
[420045056,1775631065793,-748.14887597,0.00026333,120]
[420045057,1775631065809,-251.85112403,0.00026333,120]
[420045058,1775631065822,-1000.0,0.00026333,120]
[420045059,1775631065835,-1000.0,0.00026333,120]
[420045060,1775631065847,-160.0,0.00029,30]
[420045061,1775631065860,-2462.50127253,0.0003,2]
[420045062,1775631066016,-1415.69432048,0.00023138,2]
[420045063,1775631068638,-380.51299992,0.00010059,2]
[420045064,1775631069450,-901.97472321,0.00010059,2]
[420045065,1775631069461,-726.65367492,0.00010059,2]
[420045066,1775631069700,-410.175902,0.00010059,2]
[420045067,1775631072059,1000.0,9.34e-05,2]
[420045068,1775631072082,3161.83,9.34e-05,2]
[420045070,1775631075424,-2428.28,9.34e-05,2]
[420045071,1775631078549,-5000.01,9.34e-05,2]
[420045072,1775631081396,-284.0,9.34e-05,2]
[420045073,1775631081434,-4432.01,9.34e-05,2]
[420045074,1775631083271,-538.94,9.34e-05,2]
[420045075,1775631083296,-201.0,9.989e-05,2]
[420045076,1775631088299,260.06,9.96e-05,2]
[420045077,1775631088327,1000.0,9.96e-05,2]
[420045078,1775631088354,1000.0,9.96e-05,2]
[420045079,1775631088382,1000.0,9.96e-05,2]
[420045080,1775631088409,1000.0,9.96e-05,2]